[Event "FIDE Women GP Cyprus 2025"]
[Site "Nicosia"]
[Date "2025.03.23"]
[Round "8.1"]
[White "Dzagnidze, Nana"]
[Black "Muzychuk, Mariya"]
[Result "1/2-1/2"]
[Annotator "TA"]
[ECO "D95"]
[WhiteElo "2513"]
[BlackElo "2490"]
[PlyCount "105"]
[EventDate "2025.03.10"]
[EventType "tourn"]
[EventCountry "CYP"]
[SourceTitle "playchess.com"]
[Source "ChessBase"]
[SourceQuality "1"]
[TimeControl "40/5400+30:1800+30"]

{[%evp 17,105,-18,-23,-20,-12,-29,-16,-37,-20,-15,-3,0,0,0,0,0,0,5,0,0,0,0,0,-18,-14,-4,0,0,0,0,12,0,0,0,0,-14,0,0,0,0,0,0,8,7,8,7,7,8,9,-2,-3,-6,-4,-8,0,0,0,0,-9,-54,-38,-99,-101,-100,-100,-102,-106,-111,-24,-59,-55,-57,-66,-60,0,0,0,0,0,0,0,0,0,0,0,0,0,0,0,0]} 1. d4 {[%emt 0:00:05]} Nf6 {[%emt 0:00:13]} 2. c4 {[%emt 0:00:06]} g6 {[%emt 0:00:06]} 3. Nc3 {[%emt 0:00:10]} d5 {[%emt 0:00:04]} 4. Nf3 {[%emt 0:00:11]} Bg7 {[%emt 0:00:06]} 5. e3 {[%emt 0:00:16]} O-O {[%emt 0:00:22]} 6. Qb3 {[%emt 0:00:10]} e6 {[%emt 0:05:32]} 7. Be2 {[%emt 0:00:24]} dxc4 {[%emt 0:03:36]} 8. Bxc4 {[%emt 0:05:54]} b6 {[%emt 0:00:41]} 9. O-O {[%emt 0:01:21]} Bb7 {[%emt 0:00:13]} 10. Rd1 {[%emt 0:00:30] D95: Grünfeld: 4 Nf3 Bg7 5 e3 0-0 6 Qb3.} Qe7 {[%emt 0:02:58]} 11. Bd2 {[%emt 0:05:30]} Nbd7 {[%emt 0:02:37]} 12. a4 $146 {[%emt 0:08:22]} (12. Nb5 c5 13. Qa3 a6 14. Nc7 Ra7 15. Nb5 axb5 16. Qxa7 Bxf3 17. gxf3 bxc4 18. dxc5 Qxc5 19. Bc3 Qc6 20. e4 Ra8 21. Rd6 Qc8 {0-1 Schroll,G (2243)-Kundianok,V (2377) Vienna Advent op 2024 (4)}) 12... Ne4 {[%emt 0:06:20]} 13. a5 {[%emt 0:20:40]} Nxd2 {[%emt 0:21:54]} 14. Nxd2 {[%emt 0:00:33]} a6 {[%emt 0:03:05]} 15. axb6 {[%emt 0:06:50]} cxb6 {[%emt 0:00:11]} 16. Be2 {[%emt 0:04:58]} b5 {[%emt 0:02:14]} 17. Bf3 {[%emt 0:00:27]} Bxf3 {[%emt 0:05:53]} 18. Nxf3 {[%emt 0:00:03]} Nb6 {[%emt 0:09:56][%cal Bd7b6,Bb6c4,Bc4d2][%mdl 32]} 19. Ne4 {[%emt 0:04:19]} Nc4 {[%emt 0:02:45]} 20. Nfd2 {[%emt 0:11:34]} Nxd2 {[%emt 0:02:27]} 21. Rxd2 {[%emt 0:02:17]} Rfc8 {[%emt 0:00:52]} 22. Rc2 {[%emt 0:02:03][%cal Oa1a6]} Rxc2 {[%emt 0:03:06]} 23. Qxc2 {[%emt 0:00:03]} Qb7 {[%emt 0:00:20] Repels Qc6} 24. b4 {[%emt 0:17:03]} e5 {[%emt 0:05:19]} 25. dxe5 {[%emt 0:04:57]} Bxe5 {[%emt 0:00:40]} 26. Rd1 {[%emt 0:00:52]} Qc7 {[%emt 0:07:37]} 27. Qxc7 {[%emt 0:00:07]} Bxc7 $11 {[%emt 0:00:02][%mdl 4096] Endgame KRB-KRN} 28. Kf1 {[%emt 0:00:12]} Be5 {[%emt 0:01:54]} 29. Rd7 {[%emt 0:02:44]} Bb2 {[%emt 0:07:45]} 30. Nc5 {[%emt 0:00:49]} Bc3 {[%emt 0:02:08]} 31. Nd3 {[%emt 0:00:18]} a5 {[%emt 0:01:04]} 32. bxa5 {[%emt 0:00:21]} Rxa5 {[%emt 0:00:07]} 33. e4 {[%emt 0:02:17]} Ra2 {[%emt 0:02:09]} 34. Rb7 {[%emt 0:00:33]} Rd2 {[%emt 0:00:17]} 35. Nf4 {[%emt 0:00:15]} Bd4 {[%emt 0:01:43]} 36. f3 {[%emt 0:00:03]} Rf2+ {[%emt 0:00:47]} 37. Ke1 {[%emt 0:00:02]} Rb2 {[%emt 0:00:11]} 38. g4 {[%emt 0:01:39]} b4 {[%emt 0:00:44][%cal Bb5b4,Bb4b3,Bb3b2][%mdl 32]} (38... Rxh2 39. Rxb5 Ra2 40. Nd5 $11) 39. Nd3 {[%emt 0:00:27]} (39. Rb8+ $15 Kg7 40. Rb7 Bc3+ (40... Rxh2 $2 41. Ne6+ Kf6 42. Nxd4 $18) 41. Kf1) 39... Bc3+ $17 {[%emt 0:00:59]} (39... Rxh2 $6 40. Nxb4 f5 41. gxf5 $11) 40. Kf1 {[%emt 0:00:03] [#]} Rb1+ $1 {[%emt 0:00:49]} 41. Ke2 {[%emt 0:30:02]} b3 {[%emt 0:01:30]} 42. Ke3 {[%emt 0:00:00]} g5 {[%emt 0:13:41]} (42... b2 $17 {and ...Rd1 would now be decisive} 43. e5 Bxe5) 43. Rc7 {[%emt 0:00:00]} Bf6 {[%emt 0:02:39]} 44. Rb7 {[%emt 0:00:00]} b2 $1 {[%emt 0:03:47]} 45. Rb5 {[%emt 0:00:00]} Bc3 {[%emt 0:08:28]} ({Black should try} 45... Kf8 $15 46. Kd2 Rh1 47. Nxb2 Rxh2+ 48. Kc1 Rf2) 46. Rxg5+ $11 {[%emt 0:01:11] The position is equal.} Kh8 {[%emt 0:00:33][%cal Ob1e1] [#]} (46... Kf8 $5 47. Rb5 $8 h6 $11) 47. Rb5 {[%emt 0:00:21]} Rd1 {[%emt 0:00:10]} 48. Nxb2 {[%emt 0:00:18]} Bd4+ {[%emt 0:00:32]} 49. Kf4 {[%emt 0:02:12]} (49. Ke2 $5 Rb1 $8 50. Rf5 (50. Rb8+ $2 Kg7 $19) 50... Rxb2+ 51. Kd3 $19) 49... Rb1 {[%emt 0:00:03]} 50. Rb4 {[%emt 0:01:17]} Bc3 {[%emt 0:00:59]} 51. Rb3 {[%emt 0:00:02]} Bd4 {[%emt 0:01:38]} 52. Rb4 {[%emt 0:00:07]} Bc3 {[%emt 0:00:49]} 53. Rb3 {[%emt 0:00:05] Weighted Error Value: White=0.06 (flawless) /Black=0.07 (flawless)   Mistake:       	White=1     	Black=2      Inaccurate:     	White=2     	---        OK:         	White=13    	Black=21     Best:        	White=6     	Black=1      Strong:       	---       	Black=2} (53. Rb8+ Kg7 54. Rb3 Bxb2 (54... Rxb2 55. Rxc3 Rxh2 56. Rc7 $16)) 1/2-1/2

[Event "FIDE Women GP Cyprus 2025"]
[Site "Nicosia"]
[Date "2025.03.23"]
[Round "8.2"]
[White "Goryachkina, Aleksandra"]
[Black "Harika, Dronavalli"]
[Result "1/2-1/2"]
[Annotator "TA"]
[ECO "C06"]
[WhiteElo "2548"]
[BlackElo "2483"]
[PlyCount "73"]
[EventDate "2025.03.10"]
[EventType "tourn"]
[EventCountry "CYP"]
[SourceTitle "playchess.com"]
[Source "ChessBase"]
[SourceQuality "1"]
[TimeControl "40/5400+30:1800+30"]

{[%evp 19,73,0,0,-4,0,-11,0,0,0,0,0,0,0,0,0,0,0,0,0,0,0,0,0,-18,-18,-17,-25,-20,-25,-34,-39,-10,-10,-10,-10,-18,-18,-18,-10,-41,-9,-15,-6,-21,-5,-4,-4,-6,0,-2,0,-24,0,-26,0,-59]} 1. e4 {[%emt 0:00:09][%cal Be2e4,Be4e5][%mdl 32]} e6 {[%emt 0:00:06]} 2. d4 {[%emt 0:00:11]} d5 {[%emt 0:00:07]} 3. Nd2 {[%emt 0:00:20]} Be7 {[%emt 0:00:07]} 4. Ngf3 {[%emt 0:00:43]} Nf6 {[%emt 0:01:06]} 5. e5 {[%emt 0:00:19]} Nfd7 {[%emt 0:00:06]} 6. c3 {[%emt 0:00:17]} c5 {[%emt 0:00:20]} 7. Bd3 {[%emt 0:00:28]} Nc6 {[%emt 0:00:22]} 8. O-O {[%emt 0:00:27]} a5 {[%emt 0:00:18]} 9. Re1 {[%emt 0:01:46] 9.a4 is more fashionable.} cxd4 {[%emt 0:01:03]} 10. cxd4 {[%emt 0:02:36]} Qb6 $1 {[%emt 0:00:28][%cal Og7g5]} 11. h3 {[%emt 0:02:24] C06: French Tarrasch: 3...Nf6 4 e5 Nfd7 5 Bd3 main lines.} a4 {[%emt 0:00:28]} 12. a3 {[%emt 0:01:08]} Nxd4 {[%emt 0:09:06]} 13. Nxd4 {[%emt 0:00:50]} Qxd4 {[%emt 0:00:15]} 14. Nf3 {[%emt 0:00:19] White sacrificed a pawn} Qb6 {[%emt 0:00:46] A sharp opening} 15. Ng5 {[%emt 0:02:57][%cal Og5f7]} Nc5 {[%emt 0:01:28]} 16. Bc2 {[%emt 0:01:18]} Nb3 {[%emt 0:01:53]} 17. Bxb3 $146 {[%emt 0:03:14]} (17. Be3 d4 18. Bxb3 dxe3 19. Bxa4+ Rxa4 (19... Kf8 20. Ne4 $15) 20. Qxa4+ Bd7 21. Qa8+ Bd8 $19) (17. Rb1 Nxc1 18. Qxc1 h6 19. Nf3 Bc5 20. Qd2 Bd7 21. b4 axb3 22. Rxb3 Qa7 23. Reb1 {0-1 Kollars,D (2643)-Shipov,S (2541) Titled Tuesday intern op 14th Jun Early blitz 2022 (7)}) 17... Qxb3 {[%emt 0:00:25]} 18. Qh5 {[%emt 0:11:58][%csl LRf7,LRh7]} g6 {[%emt 0:01:40]} 19. Qh6 {[%emt 0:02:33]} Bf8 {[%emt 0:02:57] Prevents Qg7.} 20. Qh4 {[%emt 0:00:26][%cal Oh4f4] [#] and Qf4! would now be decisive} Qc4 {[%emt 0:08:04]} 21. Qxc4 {[%emt 0:12:53]} dxc4 {[%emt 0:00:17]} 22. Ne4 {[%emt 0:00:25]} Be7 {[%emt 0:04:15]} 23. Bh6 {[%emt 0:03:47]} Bd7 {[%emt 0:08:04][%cal Bc8d7,Bd7c6,Bc6d5][%mdl 32]} 24. Rad1 {[%emt 0:09:56]} Bc6 {[%emt 0:05:17]} 25. Nd6+ {[%emt 0:05:41]} Bxd6 {[%emt 0:02:16]} 26. Rxd6 {[%emt 0:00:06]} Rd8 {[%emt 0:01:17]} 27. Red1 {[%emt 0:00:40]} Bd5 {[%emt 0:01:20] With the idea ...Rxd6.} 28. Rxd8+ {[%emt 0:01:37]} Kxd8 $11 {[%emt 0:00:08][%mdl 4096] Endgame KRB-KRB. Black is a pawn up.} 29. Rd4 {[%emt 0:00:05]} Rg8 {[%emt 0:09:01]} 30. Bg5+ {[%emt 0:03:31]} Kd7 {[%emt 0:03:49]} 31. Rf4 {[%emt 0:02:02]} Ke8 {[%emt 0:00:05]} 32. Rh4 {[%emt 0:00:48]} h5 {[%emt 0:00:19]} 33. Bd2 {[%emt 0:01:11]} Kd7 {[%emt 0:05:21]} 34. Rf4 {[%emt 0:01:52]} Ke8 {[%emt 0:00:27]} 35. Rh4 {[%emt 0:00:23]} Kd7 {[%emt 0:03:04]} 36. Rf4 {[%emt 0:00:12]} Ke8 {[%emt 0:00:04]} 37. Rh4 {[%emt 0:01:30] Weighted Error Value: White=0.03 (flawless) /Black=0.04 (flawless)   Inaccurate:     	---       	Black=1      OK:         	White=16    	Black=12     Best:        	White=1     	Black=1} 1/2-1/2

[Event "FIDE Women GP Cyprus 2025"]
[Site "Nicosia"]
[Date "2025.03.23"]
[Round "8.3"]
[White "Muzychuk, Anna"]
[Black "Paehtz, Elisabeth"]
[Result "1-0"]
[Annotator "TA"]
[ECO "D25"]
[WhiteElo "2516"]
[BlackElo "2424"]
[PlyCount "71"]
[EventDate "2025.03.10"]
[EventType "tourn"]
[EventCountry "CYP"]
[SourceTitle "playchess.com"]
[Source "ChessBase"]
[SourceQuality "1"]
[TimeControl "40/5400+30:1800+30"]

{[%evp 9,71,22,29,31,29,26,40,61,101,33,40,40,39,40,39,6,4,10,6,8,45,6,19,1,9,2,4,13,4,0,-9,-45,27,24,29,31,39,38,51,39,89,93,111,96,111,108,116,115,163,162,139,147,142,126,199,131,115,0,198,199,250,242,233,205]} 1. d4 {[%emt 0:00:03]} d5 {[%emt 0:00:12]} 2. c4 {[%emt 0:00:11]} dxc4 {[%emt 0:00:04]} 3. e3 {[%emt 0:00:48]} Be6 {[%emt 0:00:05]} 4. Nf3 {[%emt 0:02:04]} Nf6 {[%emt 0:00:07]} 5. Nbd2 {[%emt 0:14:19][%cal Bb1d2,Bd2c4,Bc4e5][%mdl 32]} c5 {[%emt 0:00:14]} 6. Bxc4 {[%emt 0:09:01] D25: Queen's Gambit Accepted: 4 e3: sidelines and 4...Bg4.} Bxc4 {[%emt 0:00:08]} 7. Nxc4 {[%emt 0:00:01]} Qd5 {[%emt 0:01:43]} 8. Qa4+ $146 {[%emt 0:11:39] White is slightly better.} ({Predecessor:} 8. Nce5 cxd4 9. Qxd4 Qxd4 10. Nxd4 Nfd7 11. Nxd7 Kxd7 12. Ke2 e5 13. Nf3 f6 14. Rd1+ {½-½ Erigaisi,A (2778)-Paravyan,D (2608) CrunchLab Masters Div 3 W rapid 2024 (3.4)}) 8... Qd7 {[%emt 0:04:04]} 9. Qb3 {[%emt 0:00:32] White is more active.} ({Better is} 9. Qa3 $16) 9... e6 $1 $14 {[%emt 0:00:20]} 10. O-O {[%emt 0:02:47]} Be7 {[%emt 0:07:30]} 11. Nce5 {[%emt 0:14:47]} Qc7 {[%emt 0:05:59]} 12. dxc5 {[%emt 0:08:50][%cal Oe5f7]} Nbd7 {[%emt 0:03:14]} 13. Nxd7 {[%emt 0:05:37]} Nxd7 {[%emt 0:00:15]} 14. Bd2 {[%emt 0:00:32]} Nxc5 {[%emt 0:01:41]} 15. Qc4 {[%emt 0:01:57]} O-O {[%emt 0:06:57]} 16. Rac1 {[%emt 0:00:18]} Qd7 {[%emt 0:06:53]} 17. Bc3 {[%emt 0:02:58]} Rfd8 {[%emt 0:13:30]} 18. Qg4 {[%emt 0:02:20][%csl Gc3][%cal Rg4g7]} Bf8 {[%emt 0:00:06]} 19. h3 {[%emt 0:10:26] The position is symmetric and equal} (19. Bxg7 $2 f5 20. Bxf8+ fxg4 $19) 19... Qd5 {[%emt 0:07:22][%cal Oc5e4]} 20. Ne5 {[%emt 0:03:15]} Nd3 {[%emt 0:06:39]} (20... f6 $15 21. b4 Na4 (21... fxe5 22. bxc5 Re8 23. Qh5 $16)) 21. Nxd3 $40 {[%emt 0:01:23][%mdl 128] White mounts an attack.} Qxd3 {[%emt 0:00:05]} 22. Rfd1 {[%emt 0:00:20]} Qb5 {[%emt 0:00:56]} 23. Rd4 {[%emt 0:01:37]} e5 {[%emt 0:10:05]} 24. a4 {[%emt 0:01:15]} Qc5 {[%emt 0:01:29]} (24... Qe8 $14 25. Rc4 Bd6) 25. Rxd8 {[%emt 0:04:33]} Rxd8 {[%emt 0:00:06]} 26. Qe4 {[%emt 0:00:04][%csl LRb7,LRe5]} Rd5 {[%emt 0:03:39] [#]} 27. Bd2 $1 {[%emt 0:00:44][%mdl 512]} Qd6 {[%emt 0:02:22]} 28. Bb4 {[%emt 0:00:09]} Qd8 {[%emt 0:02:28]} (28... Qd7 $16 29. Bxf8 Kxf8 30. Qxh7 Rd1+ 31. Rxd1 Qxd1+ 32. Kh2 f6) 29. Bxf8 $18 {[%emt 0:00:13]} Kxf8 {[%emt 0:02:03][%mdl 4096] Endgame KQR-KQR} 30. Qb4+ {[%emt 0:01:34]} Ke8 {[%emt 0:01:01]} 31. Qg4 {[%emt 0:00:25][%cal Oc1c8] Prevents Rd1+} Qf6 {[%emt 0:02:07]} (31... Ke7 $16 {was called for.} 32. Qxg7 Rd1+ 33. Rxd1 Qxd1+ 34. Kh2 Ke6 35. Qh6+ (35. Qxh7 Qxa4 36. g4 Qb5 $18) 35... Ke7 36. Qh4+ (36. Qxh7 Qxa4 37. g4 Qb4 $18) 36... Ke6 37. Qc4+ (37. Qxh7 Qxa4 38. g4 Qb5 $18) 37... Qd5 38. Qg4+ Kf6) 32. Qc8+ {[%emt 0:00:30]} (32. Rc7 $18) 32... Qd8 $16 {[%emt 0:00:08]} 33. Qg4 {[%emt 0:00:06]} (33. Qxb7 $16 {[%cal Oc1c8] Hoping for Rc8!.} Rd1+ 34. Rxd1 Qxd1+ 35. Kh2) 33... Qf6 $1 $18 {[%emt 0:00:07]} 34. Rc7 {[%emt 0:01:27] White is clearly better.} Rd2 {[%emt 0:04:04]} (34... b6 $142 35. Rxa7 Rd2) 35. Qc8+ {[%emt 0:00:30]} ({Worse is} 35. Rxb7 Qxf2+ 36. Kh2 Qxe3 $14) 35... Qd8 {[%emt 0:01:29]} 36. Qxb7 {[%emt 0:00:25] Weighted Error Value: White=0.14 (very precise) /Black=0.17 (very precise)   Mistake:       	White=3     	Black=5      Inaccurate:     	White=3     	Black=2      OK:         	White=12    	Black=6      Best:        	White=3     	Black=2      Strong:       	---       	Black=2      Brilliant:      	White=1     	---} 1-0

[Event "FIDE Women GP Cyprus 2025"]
[Site "Nicosia"]
[Date "2025.03.23"]
[Round "8.4"]
[White "Divya Deshmukh"]
[Black "Badelka, Olga"]
[Result "1-0"]
[Annotator "TA"]
[ECO "D04"]
[WhiteElo "2470"]
[BlackElo "2429"]
[PlyCount "141"]
[EventDate "2025.03.10"]
[EventType "tourn"]
[EventCountry "CYP"]
[SourceTitle "playchess.com"]
[Source "ChessBase"]
[SourceQuality "1"]
[TimeControl "40/5400+30:1800+30"]

{[%evp 10,141,24,8,16,14,13,8,12,-8,8,0,3,10,15,16,47,0,0,0,0,0,0,0,10,1,0,0,0,0,2,0,0,-4,-4,-7,-7,-7,-8,-13,-22,-25,-14,-33,4,20,22,0,0,0,3,4,8,0,0,-43,-41,-51,-41,-48,-56,-57,-57,-64,-64,-132,-126,-127,-102,-100,-48,-50,-43,-43,-50,-46,-50,-46,-45,-58,-55,-50,-43,-52,-37,-67,0,0,0,0,0,0,0,0,0,0,0,-8,-8,-96,14,16,58,59,93,22,72,137,53,40,188,187,180,135,138,128,852,800,958,915,959,31,31,0,924,916,900,905,1605,1593,1577,1556,1466,1406]} 1. Nf3 {[%emt 0:00:01]} d5 {[%emt 0:00:08]} 2. e3 {[%emt 0:01:14]} Nf6 {[%emt 0:01:15]} 3. b3 {[%emt 0:00:03]} g6 {[%emt 0:01:46]} 4. Bb2 {[%emt 0:00:08]} Bg7 {[%emt 0:00:05]} 5. d4 {[%emt 0:03:16]} O-O {[%emt 0:01:03]} 6. Bd3 {[%emt 0:00:17]} b6 {[%emt 0:05:05] D04: Colle System.} 7. O-O {[%emt 0:00:47]} Bb7 {[%emt 0:01:03]} 8. Qe2 {[%emt 0:11:04]} Nbd7 {[%emt 0:02:39] The position is equal.} 9. Nbd2 {[%emt 0:01:05]} c5 {[%emt 0:02:14]} 10. Ne5 {[%emt 0:01:22]} Rc8 {[%emt 0:02:04]} 11. f4 {[%emt 0:00:48]} e6 {[%emt 0:04:43]} 12. a4 {[%emt 0:02:23]} Qc7 $146 {[%emt 0:05:59]} ({Predecessor:} 12... a5 13. Rac1 Rc7 14. Bb5 Qc8 15. Qd3 Rd8 16. c3 Nb8 17. Qe2 Nc6 18. Nxc6 Bxc6 19. Bxc6 Rxc6 20. dxc5 bxc5 {½-½ Naik,R (1942)-Narciso Dublan,M (2551) Koge Niels Juel Cup 2013 (5)}) 13. Ndf3 {[%emt 0:20:15] Strong Square White (e5)} (13. a5 $14) 13... Ne4 $11 {[%emt 0:10:19]} 14. Nxd7 {[%emt 0:09:27]} Qxd7 {[%emt 0:00:16]} 15. Ne5 {[%emt 0:01:19]} Qc7 {[%emt 0:00:39]} 16. Bxe4 {[%emt 0:00:38]} dxe4 {[%emt 0:00:05]} 17. dxc5 {[%emt 0:00:22]} bxc5 {[%emt 0:01:48][%cal Oc5c4]} 18. Rfd1 {[%emt 0:04:04]} Rfd8 {[%emt 0:01:21] Wards off Rd7} 19. Qe1 {[%emt 0:00:36]} f6 {[%emt 0:12:20]} 20. Nc4 {[%emt 0:15:05]} Rd5 {[%emt 0:00:27]} 21. Bc3 {[%emt 0:00:31]} Ba6 {[%emt 0:05:57]} 22. Nb2 {[%emt 0:07:34]} Qc6 {[%emt 0:04:09]} 23. Rd2 {[%emt 0:00:40]} Rcd8 {[%emt 0:01:32]} 24. Rad1 {[%emt 0:00:08]} R8d7 {[%emt 0:00:39]} 25. h3 {[%emt 0:03:22]} h5 {[%emt 0:03:16]} 26. Ba5 {[%emt 0:05:09]} c4 {[%emt 0:04:42]} 27. Rxd5 {[%emt 0:02:12]} Rxd5 {[%emt 0:07:25]} 28. Rxd5 {[%emt 0:00:27]} Qxd5 {[%emt 0:01:10]} (28... exd5 29. b4 $16) 29. bxc4 {[%emt 0:00:29]} Bxc4 {[%emt 0:00:30]} 30. Qb4 {[%emt 0:04:04]} Ba6 {[%emt 0:00:27]} 31. c4 {[%emt 0:02:09]} Qb7 {[%emt 0:05:33]} 32. Qxb7 {[%emt 0:03:32]} Bxb7 {[%emt 0:00:04][%mdl 4096] Endgame KBB-KBN} 33. Bc3 {[%emt 0:00:10]} Kf7 {[%emt 0:00:36]} 34. Bd4 {[%emt 0:00:15]} a6 {[%emt 0:00:23]} 35. Kf2 {[%emt 0:01:11]} Bc6 {[%emt 0:03:42]} 36. a5 {[%emt 0:01:02]} Bf8 {[%emt 0:01:54]} 37. Ke2 {[%emt 0:01:06]} ({Better is} 37. Bc3 $15) 37... Bb4 $17 {[%emt 0:04:30]} 38. Bb6 {[%emt 0:00:01]} Ke7 {[%emt 0:01:57]} 39. Kd1 {[%emt 0:00:15]} Kd6 {[%emt 0:00:40]} ({Black should play} 39... f5 $17 40. Kc2 e5 41. fxe5 Be1) 40. Kc2 $1 $15 {[%emt 0:00:40]} e5 {[%emt 0:00:43]} 41. Kb3 {[%emt 0:09:57]} Be1 {[%emt 0:00:49] This pair of bishops is nice.} 42. fxe5+ {[%emt 0:02:01]} Kxe5 {[%emt 0:00:34]} 43. Nd1 {[%emt 0:00:12]} f5 {[%emt 0:03:21]} 44. Nc3 {[%emt 0:01:58]} Kd6 {[%emt 0:09:18]} 45. Ne2 {[%emt 0:03:55]} Be8 {[%emt 0:00:12]} 46. Nd4 {[%emt 0:06:32]} Bd7 {[%emt 0:00:13]} 47. Nc2 {[%emt 0:01:00]} Bg3 {[%emt 0:04:41]} (47... Bd2 $15) 48. Nb4 $11 {[%emt 0:01:09]} Bc8 {[%emt 0:00:04]} 49. c5+ {[%emt 0:00:38]} Ke6 {[%emt 0:00:23]} 50. Kc4 $1 {[%emt 0:00:37]} g5 {[%emt 0:00:29]} 51. Nc6 {[%emt 0:01:52]} (51. c6 f4 52. Nc2 fxe3) 51... Kd7 {[%emt 0:09:53]} 52. Nd4 {[%emt 0:00:03]} f4 {[%emt 0:00:04]} 53. exf4 {[%emt 0:00:30]} gxf4 {[%emt 0:01:22]} 54. Kd5 {[%emt 0:04:15]} (54. c6+ $11 Kd6 55. Bc5+ Ke5 56. Ba7) 54... e3 {[%emt 0:00:23]} (54... f3 $1 $17 {[%cal Rf3f2] And now ...f2 would win.} 55. c6+ Ke8 56. gxf3 exf3 57. Nxf3 Bxh3) 55. c6+ {[%emt 0:00:31]} Ke7 {[%emt 0:00:56][%cal Of4f3]} 56. Bc5+ {[%emt 0:00:41]} Kf6 {[%emt 0:01:42][%cal Of4f3]} 57. Nf3 {[%emt 0:01:21]} (57. Ke4 $1 $16) 57... e2 {[%emt 0:04:57]} (57... Kf7 $1 $11) 58. Bb4 $16 {[%emt 0:00:01]} Bf2 {[%emt 0:03:06]} (58... Bf5 $16) 59. Kd6 $14 {[%emt 0:00:11]} Kf5 {[%emt 0:00:11]} (59... Bf5 $1 $14) 60. Kc7 $18 {[%emt 0:00:23]} Be6 {[%emt 0:00:05]} 61. Kd8 {[%emt 0:01:41]} Ke4 {[%emt 0:01:27]} 62. c7 {[%emt 0:00:13]} Kd3 $2 {[%emt 0:00:47][%mdl 8192] [#]} (62... Kd5 $16 63. c8=Q Bxc8 64. Kxc8 Kc4) 63. Ne5+ $1 {[%emt 0:00:43]} Kc2 {[%emt 0:01:10] [#]} 64. Nd7 $1 {[%emt 0:00:28]} Kb3 {[%emt 0:00:10]} 65. Bd2 $2 {[%emt 0:01:13]} (65. c8=R $2 Kxb4 66. Rc1 e1=Q $19 (66... e1=R $2 67. Rc2 $19)) (65. c8=Q $18 {Black must now prevent Qc3+.} Kxb4 66. Qb7+ (66. Qxa6 $2 e1=Q $19) 66... Kc3 67. Qf3+ (67. Qxa6 $2 e1=Q $19) 67... Kd2 68. Qxf2) 65... Kc2 $14 {[%emt 0:00:05]} (65... e1=R $2 66. c8=Q (66. c8=B $2 Re4 $19) (66. Bxe1 Bxe1 67. c8=Q Bxa5+ 68. Ke7 Bxd7 $18) 66... Bh4+ 67. Kc7 Bxd7 68. Kxd7 $18) (65... Bh4+ $2 66. Ke8 Kc2 67. Bb4 (67. c8=B $2 Kxd2 68. Ne5 Bxc8 $19) (67. Bxf4 e1=Q $14) 67... Bxd7+ 68. Kxd7 $18) 66. Bb4 $2 {[%emt 0:00:01][%mdl 8192]} (66. Bxf4 $14 Bh4+ 67. Ke8) 66... Kb3 $1 $18 {[%emt 0:00:01]} (66... e1=R $2 67. c8=Q+ (67. c8=R+ Kd1 $14) 67... Kd1 68. Bxe1 Bxe1 69. Qxa6 $18) ({Wrong is} 66... Bh4+ $2 67. Ke8 Bxd7+ 68. Kxd7 $18) 67. c8=Q {[%emt 0:01:55] White is clearly winning.} (67. c8=R $2 Kxb4 68. Rc1 e1=Q $19 (68... e1=R $2 69. Rc2 $19)) 67... Kxb4 {[%emt 0:00:03]} 68. Qb7+ {[%emt 0:00:44]} (68. Qxa6 $2 e1=Q (68... e1=R $2 {is the wrong capture.} 69. Qd6+ Kb5 70. a6 $18) 69. Qd6+ Kb5 (69... Kxa5 $2 70. Qc7+ Kb4 71. Qxf4+ Ka3 72. Qd6+ Kb2 73. Ne5 $19) 70. Qb8+ Kxa5 71. Qc7+ Kb5 72. Qb8+ Kc4 73. Qxf4+ Bd4 74. Qc7+ Kb3 75. Nc5+ Bxc5 76. Qxc5 h4 77. Qb5+ Kc2 78. Qc6+ Kd1 $19) 68... Kxa5 {[%emt 0:02:02]} 69. Qc7+ {[%emt 0:00:02]} Kb4 {[%emt 0:00:51]} 70. Qxf4+ {[%emt 0:00:06]} Kc3 {[%emt 0:00:02]} 71. Qxf2 {[%emt 0:00:08] Weighted Error Value: White=0.10 (very precise) /Black=0.17 (very precise)   Loses game:     	---       	Black=1      Mistake:       	White=4     	Black=6      Inaccurate:     	White=2     	Black=4      OK:         	White=20    	Black=18     Best:        	White=4     	Black=3      Strong:       	White=3     	Black=1} 1-0